Expense Area,Expense Type,Period Name,GL Date,Value,Supplier,Invoice Number
,,,,#REF!,,
Centrally Managed NAO Costs,Legal and Other Professional Services Relating to Financial Audit,Jan-14,01-Jan-2014,"156,110.00",WALES AUDIT OFFICE,ARMAIN/00000133
Facilities Costs,"Purchase of Furniture,Fixtures,Fittings ",Jan-14,08-Jan-2014,"101,269.13",MITIE ENGINEERING MAINTENANCE LTD,220211344
Facilities Costs,Rates,Jan-14,30-Jan-2014,"100,000.00",CITY OF WESTMINSTER,30-JAN-2014
Facilities Costs,Rates,Jan-14,30-Jan-2014,"99,346.00",CITY OF WESTMINSTER,30-JAN-2014A
Facilities Costs,Facilities Management Contract ,Jan-14,16-Jan-2014,"82,822.88",MITIE ENGINEERING MAINTENANCE LTD,210857667
NAO Corporate Charges ,Payment for service & fee of travel management companies. ,Jan-14,28-Jan-2014,"65,611.04",REDFERN TRAVEL LTD,071724
Centrally Managed NAO Costs,Legal and Other Professional Services Relating to Financial Audit,Jan-14,13-Jan-2014,"57,000.00",FINANCIAL REPORTING COUNCIL,AQRT/738
Centrally Managed NAO Costs,Legal and Other Professional Services Relating to VFM Audit,Jan-14,13-Jan-2014,"38,427.94",UNIVERSITY OF EXETER,140654
Non-Salary Staff Costs ,Childcare Vouchers,Jan-14,23-Jan-2014,"30,986.33",Wider Plan Ltd,1434550
Non-Salary Staff Costs ,Childcare Vouchers,Jan-14,01-Jan-2014,"30,704.66",Wider Plan Ltd,1422086
Centrally Managed NAO Costs,Legal and Other Professional Services Relating to Financial Audit,Jan-14,17-Jan-2014,"30,000.00",MOORE STEPHENS,900567
Facilities Costs,Security - Manned Guarding,Jan-14,08-Jan-2014,"29,151.24",INCENTIVE LYNX SECURITY LTD,31083
Information Technology & Communications,Telecom - Line Rental ,Jan-14,13-Jan-2014,"26,570.82",CABLE & WIRELESS COMMUNICATION,UK10/012014/5488
Centrally Managed NAO Costs,Legal and Other Professional Services Relating to Financial Audit,Jan-14,17-Jan-2014,"20,000.00",MOORE STEPHENS,900566
NAO Corporate Charges ,Payment to Government Procurement Card - Corporate Credit Cards ,Jan-14,02-Jan-2014,"18,537.09",NATIONAL WESTMINSTER BANK PLC,22-DEC-2013
Staff Professional Development ,Further Education Fees ,Jan-14,16-Jan-2014,"17,214.00",South Thames College,S0003078
Information Technology & Communications,Maintenance charges,Jan-14,22-Jan-2014,"15,712.31",CANON (UK) LTD,401468442
NAO Corporate Charges ,Payment to Government Procurement Card - Corporate Credit Cards ,Jan-14,24-Jan-2014,"15,247.31",NATIONAL WESTMINSTER BANK PLC,22-JAN-2014
Facilities Costs,Electricity,Jan-14,13-Jan-2014,"15,193.44",EDF ENERGY,0072A
Facilities Costs,Newcastle - Office Costs,Jan-14,08-Jan-2014,"14,788.84",MITIE ENGINEERING MAINTENANCE LTD,220211344
Centrally Managed NAO Costs,Legal and Other Professional Services Relating to Financial Audit,Jan-14,13-Jan-2014,"12,784.50",KPMG FEES LLP ACCOUNT,5500792081
Centrally Managed NAO Costs,Legal and Other Professional Services Relating to Financial Audit,Jan-14,01-Jan-2014,"12,495.56",KPMG FEES LLP ACCOUNT,5500782985
Facilities Costs,Electricity,Jan-14,13-Jan-2014,"12,223.38",EDF ENERGY,0054A
Information Technology & Communications,Purchase of Software,Jan-14,09-Jan-2014,"11,880.00",Methods Consulting Ltd,SIN002271
Recruitment Costs,Recruitment Agency Costs,Jan-14,15-Jan-2014,"11,700.00",DMJ Recruitment,L820
Information Technology & Communications,Telecom - Line Rental ,Jan-14,01-Jan-2014,"11,700.00",CABLE & WIRELESS COMMUNICATION,20002665
Information Technology & Communications,Telecom - Line Rental ,Jan-14,13-Jan-2014,"9,333.07",Everything Everywhere,01034187056
Information Technology & Communications,Telecom - Line Rental ,Jan-14,23-Jan-2014,"9,294.37",Everything Everywhere,01045724328
NAO Corporate Finance ,Professional Subscriptions,Jan-14,01-Jan-2014,"8,500.00",HENLEY MANAGEMENT COLLEGE,619834
Information Technology & Communications,Purchase of Software,Jan-14,13-Jan-2014,"8,225.00",APOGEE DATA CONSULTING,694
Recruitment Costs,Non-Audit Temporary Staff ,Jan-14,09-Jan-2014,"8,000.00",Empiric Solutions Ltd,20611
Centrally Managed NAO Costs,Legal and Other Professional Services Relating to Financial Audit,Jan-14,02-Jan-2014,"7,857.00",KPMG FEES LLP ACCOUNT,5500788624
Recruitment Costs,Recruitment and Placement Fees,Jan-14,16-Jan-2014,"7,854.00",GATENBYSANDERSON LTD,14632
Facilities Costs,Gas,Jan-14,14-Jan-2014,"7,807.99",CORONA ENERGY,08909552
Communications,Events,Jan-14,01-Jan-2014,"7,500.00",EMAP CONFERENCES,AMI-LGCW0113-165706
Recruitment Costs,Recruitment and Placement Fees,Jan-14,02-Jan-2014,"7,437.50",GATENBYSANDERSON LTD,15273
Recruitment Costs,Recruitment and Placement Fees,Jan-14,02-Jan-2014,"7,437.50",GATENBYSANDERSON LTD,15334
Recruitment Costs,Recruitment Agency Costs,Jan-14,01-Jan-2014,"7,000.00",HARVEY NASH,TC/55497/PL
Recruitment Costs,Recruitment Campaign - AATS,Jan-14,22-Jan-2014,"6,500.00",NOTGOINGTOUNI LTD,1488
Facilities Costs,Postal Costs,Jan-14,08-Jan-2014,"6,000.00",NEOPOST,4473011
Information Technology & Communications,Purchase of Software,Jan-14,13-Jan-2014,"5,970.00",APOGEE DATA CONSULTING,694
Centrally Managed NAO Costs,Other Legal and Professional Services,Jan-14,22-Jan-2014,"5,663.00",BIRCHAM DYSON BELL,1137192
Centrally Managed NAO Costs,Other Legal and Professional Services,Jan-14,17-Jan-2014,"5,500.00",LANDesk International Limited,90582766
Information Technology & Communications,Purchase of Software,Jan-14,01-Jan-2014,"5,454.90",DELTASCHEME LTD,5690
International Twinning Projects,Twinning - Resident Advisor Office Costs,Jan-14,30-Jan-2014,"5,307.98",CYPRUS TRANSLATION SERVICES,30-JAN-2014
Communications,Provision of website for Reports,Jan-14,15-Jan-2014,"5,250.00",PRECISE MEDIA,264760
Recruitment Costs,Recruitment Agency Costs,Jan-14,14-Jan-2014,"5,120.00",EXCEL RECRUITMENT LTD,00089396
Centrally Managed NAO Costs,Other Legal and Professional Services,Jan-14,02-Jan-2014,"5,066.00",J2 Consultancy,015/13NAO
Centrally Managed NAO Costs,Legal and Other Professional Services Relating to Financial Audit,Jan-14,03-Jan-2014,"5,000.00",DELOITTE,1111005636
Staff Professional Development ,External Training Consultants,Jan-14,29-Jan-2014,"4,999.39",ASHRIDGE MANAGEMENT COLLEGE,15410
Centrally Managed NAO Costs,Legal and Other Professional Services Relating to VFM Audit,Jan-14,03-Jan-2014,"4,800.00",RISK SOLUTIONS,1944
Information Technology & Communications,Telecom - Line Rental ,Jan-14,13-Jan-2014,"4,758.84",T-MOBILE (UK) LIMITED,V00946662269
Centrally Managed NAO Costs,Other Legal and Professional Services,Jan-14,01-Jan-2014,"4,750.00",RISUAL LIMITED,INV-02996
Recruitment Costs,Recruitment and Placement Fees,Jan-14,16-Jan-2014,"4,620.00",GATENBYSANDERSON LTD,14631
Information Technology & Communications,Telecom - Line Rental ,Jan-14,23-Jan-2014,"4,405.68",T-MOBILE (UK) LIMITED,V00953293487
Centrally Managed NAO Costs,Legal and Other Professional Services Relating to Financial Audit,Jan-14,30-Jan-2014,"4,363.20",BLOOMBERG FINANCE LP,30-JAN-2014
Centrally Managed NAO Costs,Non-Audit Temporary Staff ,Jan-14,08-Jan-2014,"4,264.00",DGH Recruitment,36965
Centrally Managed NAO Costs,Other Legal and Professional Services,Jan-14,02-Jan-2014,"4,250.00",J2 Consultancy,013/13NAO
Recruitment Costs,Recruitment and Placement Fees,Jan-14,01-Jan-2014,"4,102.82",ThirtyThree LLP,LO 044309
Centrally Managed NAO Costs,Legal and Other Professional Services Relating to VFM Audit,Jan-14,01-Jan-2014,"4,000.00",OXFORD UNIVERSITY CONSULTING,0000016772
Information Technology & Communications,Purchase of Software,Jan-14,09-Jan-2014,"3,960.00",Methods Consulting Ltd,SIN001842
Staff Professional Development ,Staff Training - Personal Effectiveness,Jan-14,28-Jan-2014,"3,950.00",MyCSP Ltd,1976
Staff Professional Development ,Personal Effectiveness Training,Jan-14,09-Jan-2014,"3,877.60",Details Removed under the Data Protection Act � payment to a named individual,0110/13
Centrally Managed NAO Costs,Other Legal and Professional Services,Jan-14,01-Jan-2014,"3,800.00",RISUAL LIMITED,INV-02950
NAO Corporate Finance ,Professional Subscriptions,Jan-14,28-Jan-2014,"3,720.00",CIPFA,5131260
External Relations,Press Office Services,Jan-14,16-Jan-2014,"3,677.00",FINANCIAL TIMES INFORMATION,2120157697
Communications,VFM Reports Publishing Costs,Jan-14,13-Jan-2014,"3,600.00",DG3 Group (Holdings) Limited,67131
Recruitment Costs,Recruitment Agency Costs,Jan-14,13-Jan-2014,"3,520.00",EXCEL RECRUITMENT LTD,00089723
Centrally Managed NAO Costs,Legal and Other Professional Services Relating to VFM Audit,Jan-14,24-Jan-2014,"3,500.00",RISK SOLUTIONS,1951
Recruitment Costs,Recruitment Campaign - AATS,Jan-14,23-Jan-2014,"3,450.00",ALL ABOUT CAREERS LTD,AAC-489
Centrally Managed NAO Costs,Legal and Other Professional Services Relating to VFM Audit,Jan-14,02-Jan-2014,"3,449.00",ACCENTURE (UK) LTD,3003232853
Centrally Managed NAO Costs,Other Legal and Professional Services,Jan-14,13-Jan-2014,"3,436.00",Evolve Business Consultancy Ltd,5762
Centrally Managed NAO Costs,Other Legal and Professional Services,Jan-14,14-Jan-2014,"3,348.00",UNDERSTANDING RECRUITMENT,2749
Staff Professional Development ,Professional Training VFM ,Jan-14,10-Jan-2014,"3,250.00",PITNEY BOWES SOFTWARE LTD,IN210752
Staff Professional Development ,Professional Training VFM ,Jan-14,08-Jan-2014,"3,250.00",PITNEY BOWES LTD,IN210752
External Relations,Press Office Services,Jan-14,09-Jan-2014,"3,249.99",PRECISE MEDIA,266518
Information Technology & Communications,Maintenance charges,Jan-14,22-Jan-2014,"3,142.46",CANON (UK) LTD,xx401468442xx
NAO Corporate Finance ,Professional Subscriptions,Jan-14,01-Jan-2014,"3,000.00",CRANFIELD UNIVERSITY,1394009
Information Technology & Communications,Telecom - Line Rental ,Jan-14,02-Jan-2014,"2,997.72",BRITISH TELECOMMUNICATIONS PLC,VP 64164170 M16201 D1
External Relations,Production System Maintenance,Jan-14,01-Jan-2014,"2,858.24",COMMSTAR LTD,BR2013236
Recruitment Costs,Recruitment and Placement Fees,Jan-14,21-Jan-2014,"2,857.50",GATENBYSANDERSON LTD,15562
Centrally Managed NAO Costs,Other Legal and Professional Services,Jan-14,01-Jan-2014,"2,700.00",FDM Group Ltd,141519-FM
Non-Salary Staff Costs ,Non-salary staff costs,Jan-14,13-Jan-2014,"2,501.70",TREASURY SOLICITORS,400617
Centrally Managed NAO Costs,Non-Audit Temporary Staff ,Jan-14,21-Jan-2014,"2,496.00",DGH Recruitment,37406
Staff Professional Development ,Personal Effectiveness Training,Jan-14,16-Jan-2014,"2,400.00",Frank Partners,NJ7
Centrally Managed NAO Costs,Legal and Other Professional Services Relating to Financial Audit,Jan-14,01-Jan-2014,"2,400.00",PRICEWATERHOUSECOOPERS,1354107646
Recruitment Costs,Recruitment Agency Costs,Jan-14,15-Jan-2014,"2,342.48",EXCEL RECRUITMENT LTD,00089725
Staff Professional Development ,Staff Training - Personal Effectiveness,Jan-14,16-Jan-2014,"2,319.49",ZED1.COM Limited,2610401
Information Technology & Communications,Telecom - Line Rental ,Jan-14,23-Jan-2014,"2,308.71",BRITISH TELECOMMUNICATIONS PLC,xxVP 64164170 M16301xx
Information Technology & Communications,Telecom - Line Rental ,Jan-14,24-Jan-2014,"2,308.71",BRITISH TELECOMMUNICATIONS PLC,VP 64164170 M16301
Recruitment Costs,Recruitment Agency Costs,Jan-14,17-Jan-2014,"2,210.00",TFPL LTD,4116
International Twinning Projects,Twinning - Resident Advisor Office Costs,Jan-14,01-Jan-2014,"2,163.80",BDO,1218082
Facilities Costs,Facilities Management Contract ,Jan-14,08-Jan-2014,"2,148.22",MITIE ENGINEERING MAINTENANCE LTD,220211344
Facilities Costs,Water Rates,Jan-14,13-Jan-2014,"2,091.46",THAMES WATER UTILITIES LTD,08-JAN-2014
Staff Professional Development ,Professional Development Programme,Jan-14,15-Jan-2014,"2,011.56",ROFFEY PARK INSTITUTE LTD,25728
Non-Salary Staff Costs ,Non-salary staff costs,Jan-14,09-Jan-2014,"2,000.00",Nextstepsgroup Ltd,2051
Non-Salary Staff Costs ,Non-salary staff costs,Jan-14,14-Jan-2014,"1,965.00",CHIUMENTO CONSULTING GROUP,INV002995
Staff Professional Development ,Staff Training - Information Technology,Jan-14,24-Jan-2014,"1,800.00",QA,ISL119038
Information Technology & Communications,Telecom - Line Rental ,Jan-14,13-Jan-2014,"1,710.00",GLOBAL CROSSING (UK) TELECOMMUNICATIONS LIMITED,30745044/803483
Centrally Managed NAO Costs,Other Legal and Professional Services,Jan-14,17-Jan-2014,"1,709.00",Health ICT Consulting Limited,HIC13/104
Facilities Costs,Stationery & Office Equipment,Jan-14,08-Jan-2014,"1,705.06",OFFICE DEPOT (UK) LTD,81162840
Communications,VFM Reports Publishing Costs,Jan-14,02-Jan-2014,"1,529.33",THE STATIONERY OFFICE LTD,20239785
Facilities Costs,Services Provided to Tenants,Jan-14,24-Jan-2014,"1,481.48",MITIE ENGINEERING MAINTENANCE LTD,210858267
Facilities Costs,Services Provided to Tenants,Jan-14,02-Jan-2014,"1,481.48",MITIE ENGINEERING MAINTENANCE LTD,210852145
Staff Professional Development ,Staff Training - Personal Effectiveness,Jan-14,14-Jan-2014,"1,445.00",MARKETFORCE BUSINESS MEDIA LTD,49181
External Relations,Production System Maintenance,Jan-14,02-Jan-2014,"1,440.00",KUBE LTD,K002034
Facilities Costs,Health and Safety,Jan-14,16-Jan-2014,"1,406.86",MITIE ENGINEERING MAINTENANCE LTD,210857667
Centrally Managed NAO Costs,Other Legal and Professional Services,Jan-14,09-Jan-2014,"1,387.00",Browne Jacobson LLP,255692
NAO Corporate Finance ,Travel Company Management Fees ,Jan-14,28-Jan-2014,"1,374.03",REDFERN TRAVEL LTD,071724
Communications,VFM Reports Publishing Costs,Jan-14,13-Jan-2014,"1,369.00",DG3 Group (Holdings) Limited,110035
External Relations,Production System Maintenance,Jan-14,01-Jan-2014,"1,300.00",Platform Ticket,2120
Information Technology & Communications,Purchase of Software,Jan-14,13-Jan-2014,"1,298.94",INSIGHT DIRECT (UK) LTD,1649365
Communications,VFM Reports Publishing Costs,Jan-14,02-Jan-2014,"1,187.02",THE STATIONERY OFFICE LTD,20239793
Staff Professional Development ,Personal Effectiveness Training,Jan-14,13-Jan-2014,"1,150.00",SPEAK FIRST,9861
Staff Professional Development ,Personal Effectiveness Training,Jan-14,15-Jan-2014,"1,150.00",SPEAK FIRST,9773
Staff Professional Development ,Personal Effectiveness Training,Jan-14,23-Jan-2014,"1,150.00",SPEAK FIRST,9947
Staff Professional Development ,Personal Effectiveness Training,Jan-14,02-Jan-2014,"1,150.00",SPEAK FIRST,9883
Staff Professional Development ,Personal Effectiveness Training,Jan-14,13-Jan-2014,"1,150.00",SPEAK FIRST,9852
Staff Professional Development ,Personal Effectiveness Training,Jan-14,15-Jan-2014,"1,150.00",SPEAK FIRST,9740
Staff Professional Development ,Personal Effectiveness Training,Jan-14,23-Jan-2014,"1,150.00",SPEAK FIRST,9946
Recruitment Costs,Non-Audit Temporary Staff ,Jan-14,03-Jan-2014,"1,125.00",Details Removed under the Data Protection Act � payment to a named individual,JW1/0001
Non-Salary Staff Costs ,Childcare Vouchers,Jan-14,23-Jan-2014,"1,084.52",Wider Plan Ltd,1434550
Staff Costs,Non-Payroll Staff Costs ,Jan-14,16-Jan-2014,"1,078.80",CNLR HORIZONS LTD T/AS CIC,7380
Information Technology & Communications,Telecom - Line Rental ,Jan-14,13-Jan-2014,"1,076.61",FREEDOM COMMUNICATIONS (UK) LTD,113105
Non-Salary Staff Costs ,Childcare Vouchers,Jan-14,01-Jan-2014,"1,074.66",Wider Plan Ltd,1422086
Non-Salary Staff Costs ,Benchmarking NAO pay against other organisations,Jan-14,23-Jan-2014,"1,047.00",THOMSON REUTER,9000785209
Centrally Managed NAO Costs,Other Legal and Professional Services,Jan-14,09-Jan-2014,"1,045.00",Browne Jacobson LLP,255823
Communications,VFM Reports Publishing Costs,Jan-14,02-Jan-2014,"1,040.26",THE STATIONERY OFFICE LTD,20239815
Non-Salary Staff Costs ,Removal costs for staff on detached duty,Jan-14,23-Jan-2014,"1,014.67",Details Removed under the Data Protection Act � payment to a named individual,EXP28869
Communications,VFM Reports Publishing Costs,Jan-14,02-Jan-2014,"1,009.06",THE STATIONERY OFFICE LTD,20239823
Staff Professional Development ,Professional Training - Financial Audit ,Jan-14,13-Jan-2014,"1,002.00",ASSOCIATION FOR PROJECT MANAGEMENT,R40452/1
Facilities Costs,Professional costs - Sub-let of buildings,Jan-14,14-Jan-2014,"1,000.00",PRICEWATERHOUSECOOPERS SERVICES,567349
Staff Professional Development ,Staff Training - Personal Effectiveness,Jan-14,21-Jan-2014,999.00,BPP,547006
Staff Professional Development ,Staff Training - Information Technology,Jan-14,23-Jan-2014,995.00,Capita Travel and Events,DEV14-51
Staff Professional Development ,Staff Training - Information Technology,Jan-14,21-Jan-2014,995.00,Capita Travel and Events,DEV14-52
Staff Professional Development ,Staff Training - Information Technology,Jan-14,21-Jan-2014,995.00,Capita Travel and Events,DEV14-53
Communications,VFM Reports Publishing Costs,Jan-14,02-Jan-2014,988.85,THE STATIONERY OFFICE LTD,20247893
Communications,VFM Reports Publishing Costs,Jan-14,02-Jan-2014,988.85,THE STATIONERY OFFICE LTD,2023984X
Communications,VFM Reports Publishing Costs,Jan-14,02-Jan-2014,977.94,THE STATIONERY OFFICE LTD,20239807
Facilities Costs,Stationery & Office Equipment,Jan-14,08-Jan-2014,973.50,MITIE ENGINEERING MAINTENANCE LTD,220211344
Centrally Managed NAO Costs,Legal and Other Professional Services Relating to Financial Audit,Jan-14,01-Jan-2014,961.11,KPMG FEES LLP ACCOUNT,5500782984
Centrally Managed NAO Costs,Other Legal and Professional Services,Jan-14,01-Jan-2014,950.00,RISUAL LIMITED,INV-02967
Communications,VFM Reports Publishing Costs,Jan-14,02-Jan-2014,939.31,THE STATIONERY OFFICE LTD,20247907
Communications,VFM Reports Publishing Costs,Jan-14,02-Jan-2014,939.31,THE STATIONERY OFFICE LTD,20239831
NAO Corporate Finance ,Professional Subscriptions,Jan-14,16-Jan-2014,938.00,Details Removed under the Data Protection Act � payment to a named individual,16-JAN-2014
Communications,VFM Reports Publishing Costs,Jan-14,20-Jan-2014,937.44,THE STATIONERY OFFICE LTD,20337914
Facilities Costs,Facilities Management Contract ,Jan-14,08-Jan-2014,924.31,MITIE ENGINEERING MAINTENANCE LTD,220211344
Facilities Costs,Electricity,Jan-14,13-Jan-2014,916.78,EDF ENERGY,0084A
Non-Salary Staff Costs ,Non-salary staff costs,Jan-14,23-Jan-2014,900.00,Details Removed under the Data Protection Act � payment to a named individual,21-JAN-2014
Non-Salary Staff Costs ,Removal costs for staff on detached duty,Jan-14,23-Jan-2014,900.00,Details Removed under the Data Protection Act � payment to a named individual,EXP28376
Centrally Managed NAO Costs,Legal and Other Professional Services Relating to Financial Audit,Jan-14,09-Jan-2014,900.00,MHA MacIntyre Hudson,132587
Non-Salary Staff Costs ,Non-salary staff costs,Jan-14,22-Jan-2014,900.00,Details Removed under the Data Protection Act � payment to a named individual,21-JAN-2014
Centrally Managed NAO Costs,Legal and Other Professional Services Relating to VFM Audit,Jan-14,13-Jan-2014,880.00,Details Removed under the Data Protection Act � payment to a named individual,CM00372
Facilities Costs,Newcastle - Office Costs,Jan-14,03-Jan-2014,855.42,MITIE ENGINEERING MAINTENANCE LTD,210850291
Communications,VFM Reports Publishing Costs,Jan-14,02-Jan-2014,844.67,KUBE LTD,K002032
Facilities Costs,Newcastle - Office Costs,Jan-14,08-Jan-2014,801.57,OFFICE DEPOT (UK) LTD,81162840
Centrally Managed NAO Costs,Legal and Other Professional Services Relating to VFM Audit,Jan-14,01-Jan-2014,800.00,TIM TUTTON,NAO002
Communications,Provision of website for Reports,Jan-14,01-Jan-2014,777.24,The Dextrous Web Ltd.,1721
Information Technology & Communications,Computer Equipment ,Jan-14,15-Jan-2014,768.00,Texthelp Systems Ltd,32670
Communications,VFM Reports Publishing Costs,Jan-14,02-Jan-2014,765.00,THE STATIONERY OFFICE LTD,20239777
Communications,VFM Reports Publishing Costs,Jan-14,02-Jan-2014,765.00,THE STATIONERY OFFICE LTD,20239831
Communications,VFM Reports Publishing Costs,Jan-14,20-Jan-2014,765.00,THE STATIONERY OFFICE LTD,20337914
Communications,VFM Reports Publishing Costs,Jan-14,02-Jan-2014,765.00,THE STATIONERY OFFICE LTD,20239793
Communications,VFM Reports Publishing Costs,Jan-14,02-Jan-2014,765.00,THE STATIONERY OFFICE LTD,20239807
Communications,VFM Reports Publishing Costs,Jan-14,02-Jan-2014,765.00,THE STATIONERY OFFICE LTD,20247907
Communications,VFM Reports Publishing Costs,Jan-14,02-Jan-2014,765.00,THE STATIONERY OFFICE LTD,20247885
Communications,VFM Reports Publishing Costs,Jan-14,02-Jan-2014,765.00,THE STATIONERY OFFICE LTD,20239785
Communications,VFM Reports Publishing Costs,Jan-14,02-Jan-2014,765.00,THE STATIONERY OFFICE LTD,2023984X
Communications,VFM Reports Publishing Costs,Jan-14,02-Jan-2014,765.00,THE STATIONERY OFFICE LTD,20239815
Communications,VFM Reports Publishing Costs,Jan-14,02-Jan-2014,765.00,THE STATIONERY OFFICE LTD,20247893
Communications,VFM Reports Publishing Costs,Jan-14,02-Jan-2014,765.00,THE STATIONERY OFFICE LTD,20239823
Facilities Costs,Newcastle - Office Costs,Jan-14,08-Jan-2014,752.97,MITIE ENGINEERING MAINTENANCE LTD,36624/90681776
Facilities Costs,Newcastle - Office Costs,Jan-14,08-Jan-2014,752.97,MITIE ENGINEERING MAINTENANCE LTD,36624/90668049
NAO Corporate Finance ,Professional Subscriptions,Jan-14,07-Jan-2014,750.00,Details Removed under the Data Protection Act � payment to a named individual,07-JAN-2014
Staff Professional Development ,ICAEW - Early hurdle - provision of training and entrance to exams,Jan-14,13-Jan-2014,750.00,Details Removed under the Data Protection Act � payment to a named individual,13-JAN-2014
NAO Corporate Finance ,Professional Subscriptions,Jan-14,07-Jan-2014,750.00,Details Removed under the Data Protection Act � payment to a named individual,07-JAN-2014
Communications,VFM Reports Publishing Costs,Jan-14,02-Jan-2014,730.00,KUBE LTD,K002033
NAO Corporate Finance ,NAO Corporate Subscriptions relating to Financial and VFM Audit,Jan-14,01-Jan-2014,728.00,LEXIS-NEXIS EUROPE,SU3X35354
Information Technology & Communications,Telecom - Line Rental ,Jan-14,23-Jan-2014,706.71,FREEDOM COMMUNICATIONS (UK) LTD,113727
Information Technology & Communications,Maintenance charges,Jan-14,09-Jan-2014,699.00,SNAP SURVEYS LTD,64289
Information Centre ,On-line Services,Jan-14,13-Jan-2014,698.68,WILLIS NEWS DISTRIBUTION LTD,194929
Communications,VFM Reports Publishing Costs,Jan-14,29-Jan-2014,690.00,STAIRWAY COMMUNICATIONS LTD,18916
Non-Salary Staff Costs ,Removal costs for staff on detached duty,Jan-14,23-Jan-2014,677.16,Details Removed under the Data Protection Act � payment to a named individual,EXP28851
Communications,VFM Reports Publishing Costs,Jan-14,02-Jan-2014,642.19,THE STATIONERY OFFICE LTD,20247885
Facilities Costs,Newcastle - Office Costs,Jan-14,22-Jan-2014,630.00,ASSURITY CONSULTING,E040038
Facilities Costs,Professional costs - Sub-let of buildings,Jan-14,08-Jan-2014,628.50,Capsticks Solicitors LLP,227757
Data & Physical Security,Security Clearance Checks,Jan-14,30-Jan-2014,628.24,CAPITA,30-JAN-2014
Facilities Costs,Newcastle - Office Costs,Jan-14,14-Jan-2014,619.00,MITIE ENGINEERING MAINTENANCE LTD,36624/90685391
Centrally Managed NAO Costs,Non-Audit Temporary Staff ,Jan-14,01-Jan-2014,609.70,HAYS ACCOUNTANCY PERSONNEL,1003836075
External Relations,Press Office Services,Jan-14,09-Jan-2014,600.00,PRECISE MEDIA,266517
Information Centre ,Archiving Costs,Jan-14,02-Jan-2014,594.08,IRON MOUNTAIN (UK) LTD,RF67986
Communications,VFM Reports Publishing Costs,Jan-14,02-Jan-2014,584.67,THE STATIONERY OFFICE LTD,20239777
Recruitment Costs,Assessment Centre Costs,Jan-14,22-Jan-2014,570.00,SHL Group Limited,SI/232487
Information Centre ,Archiving Costs,Jan-14,09-Jan-2014,565.88,IRON MOUNTAIN (UK) LTD,RG69604
Communications,VFM Reports Publishing Costs,Jan-14,28-Jan-2014,564.00,SLS PRINT LTD,25446
Centrally Managed NAO Costs,Non-Audit Temporary Staff ,Jan-14,14-Jan-2014,562.50,Details Removed under the Data Protection Act � payment to a named individual,JW1/0003
Communications,VFM Reports Publishing Costs,Jan-14,27-Jan-2014,560.00,THE STATIONERY OFFICE LTD,20386125
Information Technology & Communications,Computer Equipment ,Jan-14,09-Jan-2014,548.52,Addition International Ltd,A412
Centrally Managed NAO Costs,Non-Audit Temporary Staff ,Jan-14,13-Jan-2014,545.54,HAYS ACCOUNTANCY PERSONNEL,1003933950
Centrally Managed NAO Costs,Non-Audit Temporary Staff ,Jan-14,29-Jan-2014,545.53,HAYS ACCOUNTANCY PERSONNEL,1003973520
Information Technology & Communications,Telecom - Line Rental ,Jan-14,13-Jan-2014,540.89,T-MOBILE (UK) LIMITED,V00946662269
Information Technology & Communications,Telecom - Line Rental ,Jan-14,02-Jan-2014,540.00,ZEN INTERNET,15938675
Recruitment Costs,Assessment Centre Costs,Jan-14,27-Jan-2014,513.00,SHL Group Limited,SI/232651
Non-Salary Staff Costs ,Non-salary staff costs,Jan-14,23-Jan-2014,-900.00,Details Removed under the Data Protection Act � payment to a named individual,xx21-JAN-2014xx
Facilities Costs,Facilities Management Contract ,Jan-14,16-Jan-2014,"-1,515.60",MITIE ENGINEERING MAINTENANCE LTD,210805291
Information Technology & Communications,Telecom - Line Rental ,Jan-14,24-Jan-2014,"-2,308.71",BRITISH TELECOMMUNICATIONS PLC,xxVP 64164170 M16301xx
Information Technology & Communications,Maintenance charges,Jan-14,13-Jan-2014,"-3,142.46",CANON (UK) LTD,xx401468442xx
Staff Professional Development ,Professional Training VFM ,Jan-14,10-Jan-2014,"-3,250.00",PITNEY BOWES LTD,IN210752
Non-Salary Staff Costs ,Provision of death-in-service benefit ,Jan-14,02-Jan-2014,"-51,764.73",AVIVA HEALTHCARE UK LTD,AEG39515
